Cogmind - Beta 14 @@@ ROGUE MODE // 2024.09.03 @ 23:22:42 Player: Anaia Result: Destroyed by S-10 Pest with Light Assault Rifle Performance ------------- Evolutions (0) 0 Regions Visited (2) 400 Robots Destroyed (18) 90 Value Destroyed (371) 371 Prototype IDs (2) 40 Alien Tech Used (0) 0 Bonus (0) 0 TOTAL SCORE: 901 Bonus ------- None Cogmind --------- Core Integrity 0/250 Matter 300/300 Energy 52/100 System Corruption 0% Temperature Warm (118) Movement Rolling (105) Ox1 Location -10/Mines Parts ------- > --- POWER (1) -------- (None) > --- PROPULSION (2) --- Wheel Compact Wheel > --- UTILITY (2) ------ Improved Heat Sink Large Storage Unit > --- WEAPON (2) ------- Beamcaster Beam Cannon > --- INVENTORY (15) --- Light Ion Engine Light Angular Momentum Engine Aluminum Leg Carbon-fiber Leg Compact Wheel Medium Matter Pod (100) Small Laser Small Laser Light Assault Rifle Grenade Launcher Peak State ------------ > --- POWER ------------ Light Ion Engine > --- PROPULSION ------- Wheel Wheel > --- UTILITY ---------- Improved Heat Sink Large Storage Unit > --- WEAPON ----------- Beamcaster Beam Cannon > --- INVENTORY -------- Light Ion Engine Light Angular Momentum Engine Medium Matter Pod Small Laser Small Laser Light Assault Rifle Grenade Launcher [Rating: 14] Favorites ----------- Power Light Ion Engine Engine Light Ion Engine Propulsion Wheel Wheel Wheel Utility Sensor Array Device Sensor Array Storage Large Storage Unit Processor Signal Interpreter Weapon Small Laser Energy Gun Small Laser Energy Cannon Beam Cannon Special Melee Weapon Datajack Build | -11 -10 -10 ------- Run | Yrd Mat Min Slots Evolved . | . . . Power . | . . . Propulsion . | . . . Utility . | . . . Weapon . | . . . Parts Attached 21 | 6 7 8 Power 4 | 1 1 2 Engine 4 | 1 1 2 Core . | . . . Reactor . | . . . Propulsion 5 | 2 1 2 Treads . | . . . Leg . | . . . Wheel 5 | 2 1 2 Hover . | . . . Flight . | . . . Utility 5 | 1 2 2 Device 3 | 1 1 1 Storage 1 | . . 1 Processor 1 | . 1 . Hackware . | . . . Protection . | . . . Artifact . | . . . Weapon 7 | 2 3 2 Energy Gun 5 | 2 2 1 Energy Cannon 1 | . . 1 Ballistic Gun . | . . . Ballistic Cannon . | . . . Launcher . | . . . Special Weapon . | . . . Impact Weapon . | . . . Slashing Weapon . | . . . Piercing Weapon . | . . . Special Melee Weapon 1 | . 1 . Unidentified Prototypes . | . . . Parts Lost 5 | . . 5 Power 2 | . . 2 Propulsion 2 | . . 2 Utility 1 | . . 1 Weapon . | . . . Highest Loss Streak 1 | . . 1 To Critical Strikes . | . . . Average Slot Usage (%) 94 | . 92 96 Engine 13 | . 14 13 Wheel 27 | . 27 26 Device 13 | . 14 12 Storage 5 | . . 10 Processor 6 | . 8 3 Energy Gun 20 | . 23 17 Energy Cannon 5 | . . 10 Special Melee Weapon 1 | . 3 . Peak Build Rating 14 | 6 7 14 Average Rating 7 | 4 6 8 On Entrance 4 | . 6 7 Naked Turns . | . . . Heaviest Build 32 | 6 6 32 Greatest Support 26 | 20 20 26 Greatest Overweight (x) 2 | . . 2 Average Overweight (x) . | . . . Largest Inventory Capacity 15 | 5 5 15 Average Capacity 8 | 5 5 12 Most Carried 11 | 4 5 11 Average Carried 5 | 1 4 7 Final Capacity 15 | 5 5 15 Final Carried 10 | 3 5 10 Class Distribution -------------------- 85% | Mutant 9% | Derelict-Mutant 4% | Scavenger-Mutant Dominant Class ---------------- Mutant | -10/Materials Mutant | -10/Mines Resources | -11 -10 -10 ----------- Run | Yrd Mat Min Matter Collected 505 | 360 30 115 Remotely . | . . . Salvage Created 664 | 99 136 429 Parts 33 | 7 14 12 Haulers Intercepted . | . . . Recyclers Shooed 1 | . . 1 Parts Field Recycled . | . . . Retrieved Matter . | . . . Parts Self-Destructed . | . . . Prevented . | . . . Kills | -11 -10 -10 ------- Run | Yrd Mat Min Combat Hostiles Destroyed 11 | 1 2 8 Guns 5 | 1 2 2 Cannons 5 | . . 5 Classes Destroyed 6 | 3 1 2 Worker 2 | 1 1 . Tunneler 2 | 2 . . Recycler 2 | . . 2 Watcher 1 | . 1 . Swarmer 4 | . . 4 Grunt 7 | 1 2 4 Best Kill Streak 4 | 3 1 4 Combat Bots Only 4 | 1 1 4 Max Kills in Single Turn 1 | 1 1 1 Gunslinging . | . . . Exploded . | . . . Melee . | . . . Uniques/NPCs Destroyed . | . . . Combat | -11 -10 -10 -------- Run | Yrd Mat Min Hostile Shots Fired 89 | 9 12 68 Missed 25 | 4 2 19 Damage Taken 775 | 54 122 599 Core 250 | 11 4 235 Absorbed by Shields . | . . . Regen/Repaired (Parts) 95 | . 95 . Core Remaining (%) 95 | 95 . . Volleys Fired 78 | 10 28 40 Largest 2 | 2 2 2 Hottest 135 | 80 80 135 Shots Fired 150 | 20 56 74 Gun 110 | 20 56 34 Cannon 40 | . . 40 Launcher . | . . . Special . | . . . Kinetic . | . . . Thermal 150 | 20 56 74 Explosive . | . . . Electromagnetic . | . . . Robot Hit Streak 7 | 3 5 7 Robot Miss Streak 4 | 4 3 4 Penetration Max . | . . . Secondary Targets . | . . . Shots Hit Robots 68 | 10 17 41 Core Hits 26 | 5 7 14 Critical Kills . | . . . Critical Parts Destroyed . | . . . Critical Strikes . | . . . Melee Attacks . | . . . Impact . | . . . Slashing . | . . . Piercing . | . . . Sneak Attacks . | . . . Combat Hostiles . | . . . Follow-up Attacks . | . . . Damage Inflicted 1014 | 125 198 691 Guns 572 | 125 198 249 Cannons 442 | . . 442 Explosions . | . . . Melee . | . . . Ramming . | . . . Kinetic . | . . . Thermal 1014 | 125 198 691 Explosive . | . . . Electromagnetic . | . . . Impact . | . . . Slashing . | . . . Piercing . | . . . Highest Corruption . | . . . Average Corruption . | . . . Corruption Purged . | . . . Corruption Blocked . | . . . Overload Shots . | . . . Overflow Damage . | . . . Projectiles . | . . . Explosions . | . . . Melee . | . . . Knockbacks . | . . . Impact . | . . . Kinetic . | . . . Secondary . | . . . Self-Inflicted Damage 14 | . 14 . Shots 1 | . 1 . Rammed . | . . . Targets Rammed . | . . . Kicked . | . . . Crushed . | . . . Highest Temperature 346 | 156 218 346 Average Temperature 106 | 68 68 140 Received Heat Transfer 333 | 30 60 243 Effects 2 | . . 2 Energy Bleed 1 | . . 1 Interference 1 | . . 1 Siege Activations . | . . . Robots Corrupted . | . . . Combat Hostiles . | . . . Parts Fried . | . . . Impact Corruptions . | . . . Robots Melted 1 | . . 1 Combat Hostiles 1 | . . 1 Parts Melted 4 | . . 4 Heat Transferred 2172 | 300 450 1422 Parts Sabotaged . | . . . Parts Stolen . | . . . Parts Stripped . | . . . Power Chain Reactions . | . . . Alert | -11 -10 -10 ------- Run | Yrd Mat Min Peak Influence 174 | 35 161 174 Initial 22 | . 22 9 Average 68 | 10 79 71 Maximum Alert Level . | . . . Low Security (%) 100 | 100 100 100 Level 1 . | . . . Level 2 . | . . . Level 3 . | . . . Level 4 . | . . . Level 5 . | . . . High Security . | . . . Max Security . | . . . Squads Dispatched 3 | . 3 . Investigation 2 | . 2 . Extermination . | . . . Reinforcement 1 | . 1 . Assault . | . . . Garrison . | . . . Intercept . | . . . Searches Triggered . | . . . Construction Impeded . | . . . Haulers Reinforced . | . . . Active Scanning Responses . | . . . Cargo Convoy Interrupts . | . . . Stealth | -11 -10 -10 --------- Run | Yrd Mat Min Distress Signals . | . . . Communications Jammed . | . . . Distress Signals . | . . . Times Spotted 23 | 1 9 13 Peak Tracking Total 3 | 1 3 3 Tactical Retreats 3 | . 1 2 Traps | -11 -10 -10 ------- Run | Yrd Mat Min Traps Triggered . | . . . Indirectly . | . . . Trap Hack Attempts . | . . . Triggered . | . . . Disarmed . | . . . Reprogrammed . | . . . Reused . | . . . Traps Extracted . | . . . Installed . | . . . Triggered . | . . . Machines | -11 -10 -10 ---------- Run | Yrd Mat Min Machines Disabled 1 | . 1 . Max in Single Turn 1 | . 1 . Machines Repaired . | . . . Machines Dismantled . | . . . Machines Sabotaged . | . . . Overloaded Fab Kills . | . . . Hacking | -11 -10 -10 --------- Run | Yrd Mat Min Machines Accessed 5 | . 5 . Terminals 4 | . 4 . Fabricators . | . . . Repair Stations 1 | . 1 . Recycling Units . | . . . Scanalyzers . | . . . Garrison Access . | . . . Total Hacks 20 | . 20 . Successful 16 | . 16 . Failed 4 | . 4 . Catastrophic . | . . . Database Lockouts . | . . . Manual . | . . . Terminals 14 | . 14 . Fabricators . | . . . Repair Stations 6 | . 6 . Recycling Units . | . . . Scanalyzers . | . . . Garrison Access . | . . . Terminal Hacks 10 | . 10 . Record 4 | . 4 . Prototype ID Bank 1 | . 1 . Alert Level 1 | . 1 . Dispatch Records 1 | . 1 . Hauler Manifests 1 | . 1 . Zone Layout 2 | . 2 . Fabricator Hacks . | . . . Repair Station Hacks 6 | . 6 . Scan Component 3 | . 3 . Repair 3 | . 3 . Recycling Unit Hacks . | . . . Scanalyzer . | . . . Garrison Access Hacks . | . . . Unauthorized Hacks . | . . . Terminals . | . . . Fabricators . | . . . Repair Stations . | . . . Recycling Units . | . . . Scanalyzers . | . . . Garrison Access . | . . . Data Cores Recovered . | . . . Used . | . . . Hacking Detections 2 | . 2 . Full Trace Events 2 | . 2 . Feedback Events . | . . . Feedback Blocked . | . . . Robot Schematics Acquired . | . . . Robots Built . | . . . Authchips . | . . . Time . | . . . Total Robot Build Rating . | . . . Part Schematics Acquired . | . . . Parts Built . | . . . Authchips . | . . . Time . | . . . Total Part Build Rating . | . . . Parts Repaired 3 | . 3 . Time 78 | . 78 . Parts Recycled . | . . . Recycled Matter . | . . . Retrieved Matter . | . . . Retrieved Components . | . . . Parts Scanalyzed . | . . . Part Schematics Acquired . | . . . Parts Damaged . | . . . Bothacking | -11 -10 -10 ------------ Run | Yrd Mat Min Used RIF Installer . | . . . Robots Hacked . | . . . Non-combat . | . . . Combat . | . . . Robot Hacks Applied . | . . . Relay Couplers Released . | . . . Fabnet Peak Effective % . | . . . Robots Rewired . | . . . Allies Hacked . | . . . Hacks Repelled . | . . . Allies | -11 -10 -10 -------- Run | Yrd Mat Min Total Allies 1 | . . 1 Largest Group 1 | . . 1 Highest-Rated Group 31 | . . 31 Highest-Rated Ally 31 | . . 31 Total Orders . | . . . Ally Attacks 2 | . . 2 Total Damage 21 | . . 21 Kills . | . . . Allies Corrupted . | . . . Allies Melted . | . . . Intel | -11 -10 -10 ------- Run | Yrd Mat Min Robot Analysis Total . | . . . Derelict Logs Recovered 1 | . . 1 Drone Launches . | . . . Drone Recoveries . | . . . Exploration | -11 -10 -10 ------------- Run | Yrd Mat Min Turns Passed 1039 | 102 439 498 Spaces Moved 802 | 78 321 403 Core 17 | 17 . . Treads . | . . . Legs . | . . . Wheels 785 | 61 321 403 Hover . | . . . Flight . | . . . Fastest Speed 50 | 50 80 80 Average Speed 84 | 73 80 89 Slowest Speed 110 | 80 80 110 Overloaded Moves . | . . . Propulsion Burnouts . | . . . Robots Hopped . | . . . Cave-ins Triggered . | . . . Exploration Rate (%) 40 | 9 49 63 Regions Visited 2 Branch Regions 1 Pre-discovered Areas . | . . . Known Exits Taken 1 | . 1 . Unknown Exits Taken 1 | 1 . . Scrap Searched 3 | . . 3 Spaces Dug . | . . . Terrain Destroyed . | . . . Melee . | . . . Projectile . | . . . AOE . | . . . Terrain Rammed . | . . . Walls Destroyed . | . . . Machines Disabled . | . . . Actions | -11 -10 -10 --------- Run | Yrd Mat Min Total 1013 | 102 444 467 Wait 81 | . 81 . Move 800 | 77 320 403 Hop . | . . . Pick Up 28 | 9 6 13 Fast Attach 2 | . 2 . Attach 11 | 6 1 4 Detach . | . . . Swap 8 | . 4 4 Drop 5 | . 2 3 Fire 78 | 10 28 40 Melee . | . . . Ram . | . . . Kick . | . . . Crush . | . . . Escape Stasis . | . . . Rewire . | . . . Trap . | . . . Miscellaneous . | . . . Route ------- -11/Scrapyard -10/Materials -10/Mines History --------- Turn | Location | Event 2 | -11/Scrapyard | Met Revision 17 55 | -11/Scrapyard | Discovered new exit (range 8) 103 | -11/Scrapyard | Entered Materials 318 | -10/Materials | Build established: Mutant 443 | -10/Materials | Repaired Sml. Laser 469 | -10/Materials | Repaired Sml. Laser 499 | -10/Materials | Repaired Wheel 509 | -10/Materials | Discovered new exit (range 15) 541 | -10/Materials | Identified exit to Mines 542 | -10/Materials | Entered Mines 677 | -10/Mines | Found DCF Scrap (12 items) 847 | -10/Mines | Escorted by a lone wolf Derelict 971 | -10/Mines | Core integrity fell below 50% 984 | -10/Mines | Core integrity fell below 20% 1040 | -10/Mines | Destroyed by S-10 Pest with Light Assault Rifle Last Messages --------------- Acquired 40 matter. R-06 Scavenger collects Lgt. Assault Rifle. Acquired Aluminum Leg. Acquired Carbon-fiber Leg. R-06 Scavenger destroyed. Acquired Com. Wheel. G-34 Mercenary destroyed. Wheel destroyed. Overheating: System interference. Beamcaster temporarily disabled. Critical hit (Burn: +37). G-47 Trooper heat damages Aluminum Leg, Imp. Heat Sink, Aluminum Leg, Particle Gun. G-47 Trooper heat damages Lgt. Nuclear Core. Destroyed Particle Gun. G-47 Trooper critical meltdown. Lgt. Nuclear Core melted. Acquired 10 matter. Lgt. Ion Engine destroyed. S-10 Pest destroyed. Map ----- +----------------------------------------------------+ | ????????????????# #??# #???????????# | | ??????????# ##### #### #???????????# # | | ??????????# #???????????# ## | | ??????????####### ######??? #??????# #? | | ????????????????# #??????? #??????# ? | | ????????????????# ###### ##?????####? | | ??????????????###%% #?????????? | | ?????????????## ###### #?????????? | | ?????????????# [%##???# #??????????? | | ?????????????# =%= #### #????????????? | | ?????????????# [ #?????????????? | | ?????????????# ##?????????????? | | ?????????????# ##??????????????? | | ?????????????# ##???????????????? | | ?????????????## ##????????????????? | | ??????????????#### ##????????????????? | | ????????????####### #????????????????? | | ????????????# #????????????????? | | ????????????# #????????????????? | | ????????????# ###### ##????????????????? | | ????????????# #???? #???##????????????? | | ????????????# #???? ? ?????????????? | | ????????????# #???? ???????????????? | | ????????????# #???? ###???????????????? | | ??#######???# #### s #?????????????????? | | ??# #?### s @% #?????????????????? | | ??# """ #?# ##### #?????????????????? | | ??# """ #?# ###???# #?????????????????? | | ??# """ #?# #?????# ##?????????????????? | | ??# """ #?# #????? ???????????????????? | | ??# #?# #????? ???????????????????? | | ??# ###### #????? ???????????????????? | | ??# %* #????? ???????????????????? | | ??## !% #???????????????????????????? | | ???##########???????????????????????????? | | ????????????????????????????????????????? | | ????????????????????????????????????????? | | ????????????????????????????????????????? | | ????????????????????????????????????????? | | ????????????????????????????????????????? | | | | | | | | | | | | | | | | | | | | | +----------------------------------------------------+ Best States ------------- Heat Dissipation 39 Energy Generation 10 Energy Capacity 250 Matter Stores 300 Matter Capacity 300 Sight Range 16 Robot Scan Range 14 Terrain Scan Density 10 Evasion (%) 50 Item Schematics ----------------- None Robot Schematics ------------------ None Fabricated ------------ Nothing Alien Tech Used ----------------- None Achievements -------------- None Challenges ------------ None Game ------ Seed MatterCompanionPerforator Manual? 0 Play Time 00:24:58 Cumulative 1.9 hours Start 2024.09.03 @ 22:58:09 End 2024.09.03 @ 23:22:42 Sessions 1 Manual Loads 0 Difficulty Rogue Special Mode None Game No. 2 Rogue 2 Adventurer 0 Explorer 0 Win Type - Total 0 Types 0/0/0/0/0/0/0/0/0 Lore% 1 Gallery% 3 Achievement% 4 Wizard Run 0 Options --------- Layout 1 ASCII 0 Keyboard 0 Movement Mouse Keybinds 0 Fullscreen 1 Font 24/X11 Map View 50x35 Zoom Use 0% Tactical HUD 0 Map Filters NONE Filters NONE Steam 1 RUN: f579700a-280d-4c7a-ac72-9dff7fde2334